Workbook

Sheet Wybór języka

Sheet PL
A1: P&L (Asseco Poland S.A.) | B1: P&L (Asseco Poland S.A.) | C1: Q4 2019 | D1: Q3 2019 | E1: Q2 2019 | F1: Q1 2019 | G1: Q4 2018 | H1: Q3 2018 | I1: Q2 2018 | J1: Q1 2018
C3: mln PLN | D3: mln PLN | E3: mln PLN | F3: mln PLN | G3: mln PLN | H3: mln PLN | I3: mln PLN | J3: mln PLN
A5: Przychody ze sprzedaży | B5: Sales revenues | C5: 208.7 | D5: 191.7 | E5: 210 | F5: 195.1 | G5: 251.5 | H5: 211 | I5: 225.4 | J5: 205.4
A6: Koszt własny sprzedaży | B6: Cost of sales | C6: -156.1 | D6: -133.8 | E6: -146.3 | F6: -135.6 | G6: -170.6 | H6: -134.4 | I6: -149.9 | J6: -130.3
A8: Zysk brutto ze sprzedaży | B8: Gross profit on sales | C8: =SUM(C5:C6) -> 52.6 | D8: 57.9 | E8: 63.7 | F8: 59.5 | G8: 80.9 | H8: 76.6 | I8: 75.5 | J8: 75.1
A10: Koszty sprzedaży | B10: Selling costs | C10: -14.2 | D10: -10.7 | E10: -10.5 | F10: -10.9 | G10: -13.5 | H10: -10.7 | I10: -11.4 | J10: -10.8
A11: Koszty ogólnego zarządu | B11: General administrative expenses | C11: -18.9 | D11: -19.8 | E11: -21.4 | F11: -18.9 | G11: -23.6 | H11: -18.9 | I11: -21 | J11: -18.5
A13: Zysk netto ze sprzedaży | B13: Net profit on sales | C13: =SUM(C8,C10:C11) -> 19.5 | D13: 27.4 | E13: 31.8 | F13: 29.7 | G13: 43.8 | H13: 47 | I13: 43.1 | J13: 45.8
A15: Pozostałe przychody operacyjne | B15: Other operating income | C15: 2.7 | D15: 0.7 | E15: 0.3 | F15: 0.2 | G15: 1 | H15: 0.8 | I15: 0.8 | J15: 0.8
A16: Pozostałe koszty operacyjne | B16: Other operating expenses | C16: -2 | D16: 0 | E16: -0.2 | F16: -0.8 | G16: -0.2 | H16: -0.2 | I16: -0.8 | J16: -0.2
A18: Zysk z działalności operacyjnej | B18: Operating profit | C18: =SUM(C13,C15:C16) -> 20.2 | D18: 28.1 | E18: 31.9 | F18: 29.1 | G18: 44.6 | H18: 47.6 | I18: 43.1 | J18: 46.4
A20: Działalność finansowa | B20: Financial activity | C20: 7.5 | D20: 6 | E20: 21.9 | F20: 80.1 | G20: 6.4 | H20: 3.3 | I20: 7.3 | J20: 12
A22: Zysk brutto | B22: Pre-tax profit | C22: =SUM(C18,C20) -> 27.7 | D22: 34.1 | E22: 53.8 | F22: 109.2 | G22: 51 | H22: 50.9 | I22: 50.4 | J22: 58.4
A24: Podatek dochodowy | B24: Corporate income tax | C24: -3.9 | D24: -3.5 | E24: -4.8 | F24: -5.8 | G24: -10.1 | H24: -10.7 | I24: -10.3 | J24: -13.1
A26: Zysk netto z działalności kontynuawanej za okres sprawozdawczy | B26: Net profit for the reporting period from continued operations | C26: =SUM(C22,C24) -> 23.8 | D26: 30.6 | E26: 49 | F26: 103.4 | G26: 40.9 | H26: 40.2 | I26: 40.1 | J26: 45.3
A28: Zysk netto z działalności zaniechanej za okres sprawozdawczy | B28: Net profit for the reporting period from discontinued operations | C28: 0 | D28: 0 | E28: 0 | F28: 0 | G28: 0 | H28: 0 | I28: 0 | J28: 0
A30: Zysk netto za okres sprawozdawczy | B30: Net profit for the reporting period | C30: =SUM(C26,C28) -> 23.8 | D30: 30.6 | E30: 49 | F30: 103.4 | G30: 40.9 | H30: =SUM(H26,H28) -> 40.2 | I30: 40.1 | J30: 45.3
A32: Zysk netto przypadający na jedną akcję (w złotych) z działalności kontynuowanej | B32: Earnings per share (in PLN) from continued operations:
A33: EPS | B33: EPS | C33: 0.28 | D33: 0.37 | E33: 0.59 | F33: 1.25 | G33: 0.5 | H33: 0.48 | I33: 0.48 | J33: 0.55
A34: EPS rozwodniony | B34: Diluted EPS | C34: 0.28 | D34: 0.37 | E34: 0.59 | F34: 1.25 | G34: 0.5 | H34: 0.48 | I34: 0.48 | J34: 0.55

Sheet BS
A1: BILANS ASSECO POLAND S.A. | B1: STATEMENT OF FINANCIAL POSITION OF ASSECO POLAND S.A. | C1: Q4 2019 | D1: Q3 2019 | E1: Q2 2019 | F1: Q1 2019 | G1: Q4 2018 | H1: Q3 2018 | I1: Q2 2018 | J1: Q1 2018
C3: mln PLN | D3: mln PLN | E3: mln PLN | F3: mln PLN | G3: mln PLN | H3: mln PLN | I3: mln PLN | J3: mln PLN
A7: Aktywa trwałe | B7: Non-current assets
A8: Rzeczowe aktywa trwałe | B8: Property, plant and equipment | C8: 284.6 | D8: 275.1 | E8: 271.2 | F8: 268.1 | G8: 310.2 | H8: 312.2 | I8: 314.9 | J8: 316.7
A9: Wartości niematerialne | B9: Intangible assets | C9: 2216.1 | D9: 2216.6 | E9: 2215.3 | F9: 2218.2 | G9: 2213.2 | H9: 2208.5 | I9: 2210.5 | J9: 2213.4
A10: w tym wartość firmy z połączenia | B10: of which goodwill from mergers | C10: 1932.5 | D10: 1932.5 | E10: 1932.5 | F10: 1932.5 | G10: 1932.5 | H10: 1932.5 | I10: 1932.5 | J10: 1932.5
A11: Aktywa z tytułu prawa do użytkowania | B11: Right-to-use assets | C11: 87 | D11: 90.7 | E11: 95.7 | F11: 99.9 | G11: 0 | H11: 0 | I11: 0 | J11: 0
A12: Nieruchomości inwestycyjne | B12: Investment property | C12: 0.4 | D12: 0.4 | E12: 0.4 | F12: 0.4 | G12: 0.4 | H12: 0.4 | I12: 0.4 | J12: 0.4
A13: Inw. w jedn. zależnych i stowarzyszonych | B13: Inv. in subsidiaries and associates | C13: 2073.9 | D13: 2073.9 | E13: 2073.2 | F13: 2069.7 | G13: 2052.1 | H13: 2056.1 | I13: 2055 | J13: 2052.5
A14: Należności długoterminowe | B14: Long-term receivables | C14: 69.6 | D14: 78.9 | E14: 76.9 | F14: 82 | G14: 82.7 | H14: 81.2 | I14: 85.5 | J14: 88.3
A15: Długoterminowe aktywa finansowe | B15: Long-term financial assets | C15: 14.1 | D15: 31.4 | E15: 32 | F15: 31.4 | G15: 46.4 | H15: 14 | I15: 13.5 | J15: 37.1
A16: Długoterm. rozl. międzyokresowe | B16: Long-term prepayments and accr. inc. | C16: 28.3 | D16: 9.6 | E16: 4.9 | F16: 5.6 | G16: 6 | H16: 5.9 | I16: 4.3 | J16: 1
C17: =SUM(C8:C9,C11:C16) -> 4774 | D17: =SUM(D8:D9,D11:D16) -> 4776.6 | E17: =SUM(E8:E9,E11:E16) -> 4769.6 | F17: =SUM(F8:F9,F11:F16) -> 4775.3 | G17: =SUM(G8:G9,G11:G16) -> 4711 | H17: 4678.3 | I17: 4684.1 | J17: 4709.4
A18: Aktywa obrotowe | B18: Current assets
A19: Zapasy | B19: Inventories | C19: 8.1 | D19: 3.3 | E19: 2.6 | F19: 4.3 | G19: 2.6 | H19: 4.7 | I19: 4.7 | J19: 2.8
A20: Należności z tytułu dostaw i usług | B20: Trade receivables | C20: 170.9 | D20: 152.8 | E20: 203.1 | F20: 138 | G20: 173.7 | H20: 160.4 | I20: 187.3 | J20: 373.6
A21: Aktywa z tytułu umów z klientami | B21: Contract assets | C21: 50.1 | D21: 99.2 | E21: 119.4 | F21: 144.9 | G21: 122.4 | H21: 151.7 | I21: 164.9 | J21: 0
A22: Należności z tyt. podatku dochodowego od osób prawnych | B22: Corporate income tax receivable | C22: 0 | D22: 0.2 | E22: 0.9 | F22: 0 | G22: 0 | H22: 0.1 | I22: 0.1 | J22: 28.3
A23: Pozostałe należności | B23: Other receivables | C23: =21.1+1.4 -> 22.5 | D23: 22.1 | E23: 22.7 | F23: 89.3 | G23: 17.4 | H23: 27.3 | I23: 24.2 | J23: 25.3
A24: Pozostałe aktywa niefinansowe | B24: Other non-financial assets | C24: 0.9 | D24: 2.7 | E24: 0.9 | F24: 1.8 | G24: 1.6 | H24: 3.8 | I24: 1.6 | J24: 1.8
A25: Aktywa finansowe | B25: Financial assets | C25: 1.7 | D25: 0.8 | E25: 1.6 | F25: 1.4 | G25: 1.4 | H25: 23.8 | I25: 23.3 | J25: 5.7
A26: Rozliczenia międzyokresowe | B26: Prepayments and accrued income | C26: 38.8 | D26: 29.3 | E26: 22.1 | F26: 24 | G26: 16.1 | H26: 16 | I26: 13.2 | J26: 14.7
A27: Środki pieniężne i depozyty krótkoterminowe | B27: Cash and short-term deposits | C27: 168.7 | D27: 94.9 | E27: 35.1 | F27: 247.8 | G27: 264.7 | H27: 184.5 | I27: 147.8 | J27: 298.4
A28: Aktywa przeznaczone do sprzedaży | B28: Assets held for sale | C28: 0 | D28: 0 | E28: 1.9 | F28: 3.5 | G28: 6 | H28: 6 | I28: 3.9 | J28: 3.9
C29: =SUM(C19:C28) -> 461.7 | D29: =SUM(D19:D28) -> 405.3 | E29: 410.3 | F29: 655 | G29: 605.9 | H29: 578.3 | I29: 571 | J29: 754.5
A32: SUMA AKTYWÓW | B32: TOTAL ASSETS | C32: =SUM(C17,C29) -> 5235.7 | D32: =SUM(D17,D29) -> 5181.9 | E32: 5179.9 | F32: 5430.3 | G32: =SUM(G17,G29) -> 5316.9 | H32: 5256.6 | I32: 5255.1 | J32: 5463.9
A34: KAPITAŁ WŁASNY OGÓŁEM | B34: TOTAL EQUITY | C34: 4892.4 | D34: 4869.1 | E34: 4838.5 | F34: 5046 | G34: 4949.8 | H34: 4909 | I34: 4869 | J34: 5078.9
A36: Zobowiązania długoterminowe | B36: Non-current liabilities
A37: Długoterminowe oprocentowane kredyty bankowe, pożyczki, dłużne papiery wartościowe | B37: Long-term interest-bearing bank loans, borrowings and debt securities | C37: 0 | D37: 0 | E37: 0 | F37: 0 | G37: 38.8 | H37: 42.5 | I37: 46.4 | J37: 59.9
A38: Dł. zob. z tyt. leasingu finansowego | B38: Long-term finance lease liabilities | C38: 55 | D38: 59.1 | E38: 67.6 | F38: 76.1 | G38: 21.8 | H38: 27.7 | I38: 34.2 | J38: 38.8
A39: Długoterminowe zobowiązania finansowe | B39: Long-term financial liabilities | C39: 6 | D39: 7.4 | E39: 2.8 | F39: 2.7 | G39: 2.2 | H39: 0 | I39: 1.2 | J39: 0
A40: Rezerwa z tytułu odr. podatku doch. | B40: Deferred income tax liabilities | C40: 22.3 | D40: 27.3 | E40: 28.4 | F40: 29.5 | G40: 26.3 | H40: 28.2 | I40: 28 | J40: 25
A41: Długoterminowe zobowiązania z tytułu umów z klientami | B41: Long-term contract liabilities | C41: 17.5 | D41: 12.2 | E41: 8.3 | F41: 8.3 | G41: 8.7 | H41: 6 | I41: 4.8 | J41: 0
A42: Długoterminowe pozostałe zobowiązania | B42: Other long-term liabilities | C42: 0.1 | D42: 0.1 | E42: 0.3 | F42: 0.3 | G42: 0.5 | H42: 0.5 | I42: 0.1 | J42: 0.3
A43: Długoterminowe rezerwy | B43: Long-term provisions | C43: 3.6 | D43: 6.2 | E43: 11.3 | F43: 9 | G43: 9.7 | H43: 12.5 | I43: 14.7 | J43: 17
A44: Długoterminowe rozliczenia międzyokresowe przychodów | B44: Long-term deferred income | C44: 32.7 | D44: 33.1 | E44: 33.1 | F44: 33 | G44: 32.4 | H44: 31.9 | I44: 31.5 | J44: 37.1
C45: =SUM(C37:C44) -> 137.2 | D45: 145.4 | E45: 151.8 | F45: 158.9 | G45: 140.4 | H45: 149.3 | I45: 160.9 | J45: 178.1
A46: Zobowiązania krótkoterminowe | B46: Current liabilities
A47: Oprocentowane kredyty bankowe, pożyczki, dłużne papiery wartościowe | B47: Interest-bearing bank loans, borrowings and debt securities | C47: 0 | D47: 0.5 | E47: 1.1 | F47: 25.9 | G47: 15.2 | H47: 15.3 | I47: 15.4 | J47: 25.2
A48: Zob. z tyt. leasingu finansowego | B48: Finance lease liabilities | C48: 27.6 | D48: 32.4 | E48: 31.8 | F48: 31.9 | G48: 23.6 | H48: 23 | I48: 23.1 | J48: 22
A49: Inne zobowiązania finansowe | B49: Other financial liabilities | C49: 0.7 | D49: 0.9 | E49: 2.3 | F49: 2.2 | G49: 1 | H49: 1.1 | I49: 1.8 | J49: 0.1
A50: Zobowiązania z tytułu dostaw i usług | B50: Trade payables | C50: 70.4 | D50: 50.3 | E50: 63.2 | F50: 66.9 | G50: 75.8 | H50: 66 | I50: 85.9 | J50: 70.4
A51: Krótkoterminowe zobowiązania z tytułu umów z klientami | B51: Current contract liabilities | C51: 34.9 | D51: 26.2 | E51: 27.6 | F51: 23.5 | G51: 26.5 | H51: 20 | I51: 24.7 | J51: 0
A52: Zobowiązania budżetowe | B52: Liabilities to the state and local budgets | C52: 13.2 | D52: 11 | E52: 20.4 | F52: 12.7 | G52: 15.6 | H52: 13 | I52: 14.6 | J52: 17.5
A53: Zobowiązania z tytułu podatku dochodowego od osób prawych | B53: Corporate income tax payable | C53: 4.6 | D53: 0 | E53: 0 | F53: 10.3 | G53: 15.1 | H53: 8.4 | I53: 4.1 | J53: 0
A54: Pozostałe zobowiązania | B54: Other liabilities | C54: 11.5 | D54: 8.5 | E54: 6.4 | F54: 2.9 | G54: 7 | H54: 9.7 | I54: 11.2 | J54: 9.9
A55: Rezerwy | B55: Provisions | C55: 8.7 | D55: 9.2 | E55: 5.8 | F55: 10.3 | G55: 11.8 | H55: 10.4 | I55: 10.5 | J55: 10.7
A56: Rozliczenia międzyokresowe kosztów | B56: Deferred income | C56: 33 | D56: 27.2 | E56: 29.8 | F56: 37.6 | G56: 33.8 | H56: 30.1 | I56: 32.5 | J56: 28
A57: Rozliczenia międzyokresowe przychodów | B57: Accruals | C57: 1.5 | D57: 1.2 | E57: 1.2 | F57: 1.2 | G57: 1.3 | H57: 1.3 | I57: 1.4 | J57: 23.1
C58: =SUM(C47:C57) -> 206.1 | D58: =SUM(D47:D57) -> 167.4 | E58: 189.6 | F58: 225.4 | G58: 226.7 | H58: =SUM(H47:H57) -> 198.3 | I58: 225.2 | J58: 206.9
A60: SUMA ZOBOWIĄZAŃ | B60: TOTAL LIABILITIES | C60: =SUM(C45,C58) -> 343.3 | D60: =SUM(D45,D58) -> 312.8 | E60: 341.4 | F60: 384.3 | G60: =SUM(G45,G58) -> 367.1 | H60: 347.6 | I60: 386.1 | J60: 385
A62: SUMA PASYWÓW | B62: TOTAL EQUITY AND LIABILITIES | C62: =SUM(C34,C60) -> 5235.7 | D62: =SUM(D34,D60) -> 5181.9 | E62: 5179.9 | F62: 5430.3 | G62: 5316.9 | H62: =SUM(H34,H60) -> 5256.6 | I62: 5255.1 | J62: 5463.9
C63: =C62-C32 -> 0 | D63: =D62-D32 -> 0 | E63: 0 | F63: 0 | G63: 0 | H63: 0 | I63: 0 | J63: 0

Sheet CF
A1: RACHUNEK PRZEPŁYWÓW PIENIĘŻNYCH ASSECO POLAND S.A. | B1: STATEMENT OF CASH FLOWS OF ASSECO POLAND S.A. | C1: Q1-Q4 2019 | D1: Q1-Q4 2018
C2: mln PLN | D2: mln PLN
A4: Przepływy środków pieniężnych z działalności operacyjnej | B4: Cash flows – operating activities
A5: Zysk brutto | B5: Pre-tax profit | C5: 224.8 | D5: 210.7
A6: Korekty o pozycje: | B6: Total adjustments: | C6: =SUM(C7:C16) -> -14.5 | D6: =SUM(D7:D16) -> 82.5
A7: Amortyzacja | B7: Depreciation and amortization | C7: 63.7 | D7: 56.6
A8: Zmiany stanu kapitału pracującego | B8: Changes in working capital | C8: 40.6 | D8: 53.7
A9: Przychody/koszty z tytułu odsetek | B9: Interest income/expenses | C9: 0.3 | D9: -1
A10: Zyski/straty z tytułu różnic kursowych | B10: Gain / loss on foreign exchange differences | C10: -2.2 | D10: 0
A11: Przychody z tytułu dywidend | B11: Dividend income | C11: -114.8 | D11: -20.5
A12: Strata ze sprzedaży akcji/udziałów w jednostkach powiązanych | B12: Gain / loss on sales of share in subsidiaries | C12: 0 | D12: 0
A13: Pozostałe przychody/koszty finansowe | B13: Other financial (income)/ costs | C13: -1.1 | D13: -4.9
A14: Odpis aktualizujący wartości niematerialne | B14: Intangible assets impairment | C14: 0 | D14: 0
A15: Zyski/straty z działalności inwestycyjnej | B15: Gain / loss on investing activities | C15: -1 | D15: -1.4
A16: Pozostałe korekty zysku brutto | B16: Other pre-tax profit adjustments | C16: 0 | D16: 0
A17: Środki pieniężne netto wygenerowane z dział. operacyjnej | B17: Cash generated from operating activities | C17: =SUM(C5:C6) -> 210.3 | D17: =SUM(D5:D6) -> 293.2
A18: (Zapłacony podatek dochodowy) / Otrzymane zwroty podatku dochodowego | B18: (Corporate income tax paid) / Corporate income tax receipts | C18: -29.5 | D18: 5.9
A19: Środki pieniężne netto z działalności operacyjnej | B19: Net cash provided by (used in) operating activities | C19: =SUM(C17:C18) -> 180.8 | D19: =SUM(D17:D18) -> 299.1
A21: Przepływy środków pieniężnych z działalności inwestycyjnej | B21: Cash flows – investing activities
A22: Wpływy ze sprzedaży AT i WN [1] | B22: Disposal of tangible FA and IA [1] | C22: 9.6 | D22: 2.5
A23: Nabycie AT i WN [1] | B23: Acquisition of tangible FA and IA [1] | C23: -46.2 | D23: -27.1
A24: Wydatki z tytułu prowadzonych projektów rozwojowych | B24: Expenditures for development projects in progress | C24: -25.6 | D24: -12.6
A25: Wpływy ze sprzedaży/liwidacji inwestycji w jednostkach powiązanych | B25: Disposal of shares in related companies | C25: 10.8 | D25: 12.1
A26: Nabycie akcji/udziałów w jednostkach powiązanych | B26: Acquisition of shares in related companies | C26: -3.6 | D26: -16.1
A27: Nabycie aktywów finansowych | B27: Acquisition of financial assets | C27: 0 | D27: -15.3
A28: Wpływy ze sprzedaży aktywów finansowych P&L [2] | B28: Disposal of financial assets P&L [2] | C28: 0 | D28: 1.4
A29: Pożyczki spłacone | B29: Loans collected | C29: 6.5 | D29: 15.8
A30: Pożyczki udzielone | B30: Loans granted | C30: -3.8 | D30: -4.4
A31: Otrzymane odsetki | B31: Interest received | C31: 3.4 | D31: 5.5
A32: Dywidendy otrzymane | B32: Dividends received | C32: 112.2 | D32: 16.3
A33: Pozostałe wpływy | B33: Other inflows | C33: 0 | D33: -0.2
A34: Środki pieniężne netto wykorzystane w działalności inwestycyjnej | B34: Net cash provided by (used in) investing activities | C34: =SUM(C22:C33) -> 63.3 | D34: =SUM(D22:D33) -> -22.1
A36: Przepływy środków pieniężnych z działalności finansowej | B36: Cash flows – financing activities
A37: Wypłacona dywidenda | B37: Dividend paid out | C37: -254.8 | D37: -249.8
A38: Wpływy z tytułu zaciągnięcia kredytów | B38: Proceeds from bank loans | C38: 0 | D38: 0
A39: Wydatki z tytułu spłaty kredytów | B39: Repayment of bank loans and borrowings | C39: -53.8 | D39: -34.6
A40: Dotacje otrzymane do zakupu środków trwałych lub/i projektów rozwojowych | B40: Subsidies received | C40: 5.1 | D40: 1
A41: Dotacje zwrócone | B41: Subsidies returned | C41: 0 | D41: -9.5
A42: Spłata zobowiązań z tytułu leasingu finansowego | B42: Finance lease liabilities paid | C42: -31.8 | D42: -21.9
A43: Zapłacone odsetki | B43: Interest paid | C43: -4.9 | D43: -5.6
A44: Środki pieniężne netto z działalności finansowej | B44: Net cash provided by (used in) financing activities | C44: =SUM(C37:C43) -> -340.2 | D44: =SUM(D37:D43) -> -320.4
A45: Zmiana netto stanu środków pieniężnych i ich ekwiwalentów | B45: Net change in cash and cash equivalents | C45: =C19+C34+C44 -> -96.1 | D45: =D19+D34+D44 -> -43.4
A46: Różnice kursowe netto | B46: Net foreign exchange differences | C46: 0.1 | D46: 0.1
A47: Środki pieniężne i ich ekwiwalenty na dzień 1 stycznia | B47: Cash and cash equivalents at 1 January | C47: 264.7 | D47: 308
A48: Środki pieniężne i ich ekwiwalenty na dzień 31 grudnia | B48: Cash and cash equivalents at 31 December | C48: 168.7 | D48: 264.7
C49: =C47+C46+C45-C48 -> 0 | D49: =D47+D46+D45-D48 -> 0
C50: 0 | D50: 0
A52: Objaśnienia: | B52: Legend:
A53: [1] AT i WN - aktywów trwałych i wartości niematerialnych | B53: [1] FA and IA - fixed assets and intangible assets
A54: [2] Wpływy / wydatki ze sprzedaży aktywów finansowych wycenianych do wartości godziwej przez rachunek zysków i strat | B54: [2] Disposal / Purchase of financial assets carried at fair value through profit or loss

Sheet PL (no MSSF 16)
A1: P&L (Asseco Poland S.A.) | B1: P&L (Asseco Poland S.A.) | C1: Q4 2019 | D1: Q3 2019 | E1: Q2 2019 | F1: Q1 2019
C3: mln PLN | D3: mln PLN | E3: mln PLN | F3: mln PLN
A5: Przychody ze sprzedaży | B5: Sales revenues | C5: 208.7 | D5: 191.7 | E5: 210 | F5: 195.1
A6: Koszt własny sprzedaży | B6: Cost of sales | C6: -156.1 | D6: -133.8 | E6: -146.3 | F6: -135.6
A7: Korekta z tytułu MSSF 16 | B7: Adjustment due to IFRS 16 | C7: -0.1 | D7: -0.4 | E7: -0.2 | F7: -0.2
A9: Zysk brutto ze sprzedaży | B9: Gross profit on sales | C9: =SUM(C5:C7) -> 52.5 | D9: =SUM(D5:D7) -> 57.5 | E9: =SUM(E5:E7) -> 63.5 | F9: =SUM(F5:F7) -> 59.3
A11: Koszty sprzedaży | B11: Selling costs | C11: -14.2 | D11: -10.7 | E11: -10.5 | F11: -10.9
A12: Koszty ogólnego zarządu | B12: General administrative expenses | C12: -18.9 | D12: -19.8 | E12: -21.4 | F12: -18.9
A13: Korekta z tytułu MSSF 16 | B13: Adjustment due to IFRS 16 | C13: 0 | D13: -0.1 | E13: -0.1 | F13: -0.1
A15: Zysk netto ze sprzedaży | B15: Net profit on sales | C15: =SUM(C9,C11:C13) -> 19.4 | D15: =SUM(D9,D11:D13) -> 26.9 | E15: =SUM(E9,E11:E13) -> 31.5 | F15: 29.4
A17: Pozostałe przychody operacyjne | B17: Other operating income | C17: 2.7 | D17: 0.7 | E17: 0.3 | F17: 0.2
A18: Pozostałe koszty operacyjne | B18: Other operating expenses | C18: -2 | D18: 0 | E18: -0.2 | F18: -0.8
A20: Zysk z działalności operacyjnej | B20: Operating profit | C20: =SUM(C15,C17:C18) -> 20.1 | D20: =SUM(D15,D17:D18) -> 27.6 | E20: =SUM(E15,E17:E18) -> 31.6 | F20: =SUM(F15,F17:F18) -> 28.8
A22: Działalność finansowa | B22: Financial activity | C22: 7.6 | D22: 6 | E22: 21.9 | F22: 80.1
A23: Korekta z tytułu MSSF 16 | B23: Adjustment due to IFRS 16 | C23: 0.6 | D23: 0.5 | E23: 0.6 | F23: 0.6
A25: Zysk brutto | B25: Pre-tax profit | C25: =SUM(C20,C22:C23) -> 28.3 | D25: =SUM(D20,D22:D23) -> 34.1 | E25: =SUM(E20,E22:E23) -> 54.1 | F25: 109.5
A27: Podatek dochodowy | B27: Corporate income tax | C27: -3.9 | D27: -3.5 | E27: -4.8 | F27: -5.8
A28: Korekta z tytułu MSSF 16 | B28: Adjustment due to IFRS 16 | C28: 0 | D28: -0.1 | E28: 0 | F28: 0
A30: Zysk netto z działalności kontynuawanej za okres sprawozdawczy | B30: Net profit for the reporting period from continued operations | C30: =SUM(C25,C27:C28) -> 24.4 | D30: =SUM(D25,D27:D28) -> 30.5 | E30: =SUM(E25,E27:E28) -> 49.3 | F30: 103.7
A32: Zysk netto z działalności zaniechanej za okres sprawozdawczy | B32: Net profit for the reporting period from discontinued operations | C32: 0 | D32: 0 | E32: 0 | F32: 0
A34: Zysk netto za okres sprawozdawczy | B34: Net profit for the reporting period | C34: =SUM(C30,C32) -> 24.4 | D34: =SUM(D30,D32) -> 30.5 | E34: =SUM(E30,E32) -> 49.3 | F34: 103.7
A36: Zysk netto przypadający na jedną akcję (w złotych) z działalności kontynuowanej | B36: Earnings per share (in PLN) from continued operations:
A37: EPS | B37: EPS | C37: 0.28 | D37: 0.37 | E37: 0.59 | F37: 1.25
A38: EPS rozwodniony | B38: Diluted EPS | C38: 0.28 | D38: 0.37 | E38: 0.59 | F38: 1.25

Sheet CF (no MSSF 16)
A1: STATEMENT OF CASH FLOWS OF ASSECO POLAND S.A. | B1: STATEMENT OF CASH FLOWS OF ASSECO POLAND S.A. | C1: Q1-Q4 2019
C2: mln PLN
A4: Przepływy środków pieniężnych z działalności operacyjnej | B4: Cash flows – operating activities
A5: Zysk brutto | B5: Pre-tax profit | C5: 224.8
A6: Korekta zysku brutto z tytułu wdrożenia MSSF 16 | B6: Adjustment of gross profit from the implementation of IFRS 16 | C6: 1.1
A8: Korekty o pozycje: | B8: Total adjustments: | C8: =SUM(C9:C20) -> -25.3
A9: Amortyzacja | B9: Depreciation and amortization | C9: 63.7
A10: Korekta amortyzacji z tytułu wdrożenia MSSF 16 | B10: Adjustment of depreciation due to the implementation of IFRS 16 | C10: -8.5
A11: Zmiany stanu kapitału pracującego | B11: Changes in working capital | C11: 40.6
A12: Przychody/koszty z tytułu odsetek | B12: Interest income/expenses | C12: 0.3
A13: Korekta odsetek z tytułu wdrożenia MSSF 16 | B13: Adjustment of interest due to the implementation of IFRS 16 | C13: -2.3
A14: Zyski/straty z tytułu różnic kursowych | B14: Gain / loss on foreign exchange differences | C14: -2.2
A15: Przychody z tytułu dywidend | B15: Dividend income | C15: -114.8
A16: Przychody ze sprzedaży akcji/udziałów w jednostkach powiązanych | B16: Gain / loss on sales of share in subsidiaries | C16: 0
A17: Pozostałe przychody/koszty finansowe | B17: Other financial (income)/ costs | C17: -1.1
A18: Odpis aktualizujący wartości niematerialne | B18: Intangible assets impairment | C18: 0
A19: Zyski/straty z działalności inwestycyjnej | B19: Gain / loss on investing activities | C19: -1
A20: Pozostałe korekty zysku brutto | B20: Other pre-tax profit adjustments | C20: 0
A21: Środki pieniężne netto wygenerowane z dział. operacyjnej | B21: Cash generated from operating activities | C21: =SUM(C5:C8) -> 200.6
A22: (Zapłacony podatek dochodowy) / Otrzymane zwroty podatku dochodowego | B22: (Corporate income tax paid) / Corporate income tax receipts | C22: -29.5
A23: Środki pieniężne netto z działalności operacyjnej | B23: Net cash provided by (used in) operating activities | C23: =SUM(C21:C22) -> 171.1
A25: Przepływy środków pieniężnych z działalności inwestycyjnej | B25: Cash flows – investing activities
A26: Wpływy ze sprzedaży AT i WN [1] | B26: Disposal of tangible FA and IA [1] | C26: 9.6
A27: Nabycie AT i WN [1] | B27: Acquisition of tangible FA and IA [1] | C27: -46.2
A28: Wydatki z tytułu prowadzonych projektów rozwojowych | B28: Expenditures for development projects in progress | C28: -25.6
A29: Wpływy ze sprzedaży/liwidacji inwestycji w jednostkach powiązanych | B29: Disposal of shares in related companies | C29: 10.8
A30: Nabycie akcji/udziałów w jednostkach powiązanych | B30: Acquisition of shares in related companies | C30: -3.6
A31: Nabycie aktywów finansowych | B31: Acquisition of financial assets | C31: 0
A32: Wpływy ze sprzedaży aktywów finansowych P&L [2] | B32: Disposal of financial assets P&L [2] | C32: 0
A33: Pożyczki spłacone | B33: Loans collected | C33: 6.5
A34: Pożyczki udzielone | B34: Loans granted | C34: -3.8
A35: Otrzymane odsetki | B35: Interest received | C35: 3.4
A36: Dywidendy otrzymane | B36: Dividends received | C36: 112.2
A37: Pozostałe wpływy | B37: Other inflows | C37: 0
A38: Środki pieniężne netto wykorzystane w działalności inwestycyjnej | B38: Net cash provided by (used in) investing activities | C38: =SUM(C26:C37) -> 63.3
A40: Przepływy środków pieniężnych z działalności finansowej | B40: Cash flows – financing activities
A41: Wypłacona dywidenda | B41: Dividend paid out | C41: -254.8
A42: Wpływy z tytułu zaciągnięcia kredytów | B42: Proceeds from bank loans | C42: 0
A43: Wydatki z tytułu spłaty kredytów | B43: Repayment of bank loans and borrowings | C43: -53.8
A44: Dotacje otrzymane do zakupu środków trwałych lub/i projektów rozwojowych | B44: Subsidies received | C44: 5.1
A45: Dotacje zwrócone | B45: Subsidies returned
A46: Spłata zobowiązań z tytułu leasingu finansowego | B46: Finance lease liabilities paid | C46: -31.8
A47: Korekta zobowiązania z tytułu leasingu finasnowego z tytułu wdrożenia MSSF 16 | B47: Adjustment of the financial leasing liability due to the implementation of IFRS 16 | C47: 7.4
A48: Zapłacone odsetki | B48: Interest paid | C48: -4.9
A49: Korekta z tytułu MSSF 16 | B49: Adjustment due to IFRS 16 | C49: 2.3
A50: Środki pieniężne netto z działalności finansowej | B50: Net cash provided by (used in) financing activities | C50: =SUM(C41:C49) -> -330.5
A51: Zmiana netto stanu środków pieniężnych i ich ekwiwalentów | B51: Net change in cash and cash equivalents | C51: =C23+C38+C50 -> -96.1
A52: Różnice kursowe netto | B52: Net foreign exchange differences | C52: 0.1
A53: Środki pieniężne i ich ekwiwalenty na dzień 1 stycznia | B53: Cash and cash equivalents at 1 January | C53: 264.7
A54: Środki pieniężne i ich ekwiwalenty na dzień 31 grudnia | B54: Cash and cash equivalents at 31 December | C54: 168.7
C55: =C53+C52+C51-C54 -> 0
C56: 0
A58: Objaśnienia: | B58: Legend:
A59: [1] AT i WN - aktywów trwałych i wartości niematerialnych | B59: [1] FA and IA - fixed assets and intangible assets
A60: [2] Wpływy / wydatki ze sprzedaży aktywów finansowych wycenianych do wartości godziwej przez rachunek zysków i strat | B60: [2] Disposal / Purchase of financial assets carried at fair value through profit or loss
